[Event "57th Biel Festival MTO 2024"]
[White "Saravanan,V.."]
[Black "Altantuya,Boldbaatar"]
[Site "Biel"]
[Round "5.34"]
[Annotator "RC"]
[Result "1/2-1/2"]
[Date "2024.07.19"]
[WhiteElo "2266"]
[BlackElo "2107"]
[PlyCount "76"]
[TimeControl "60"]

1. Nf3 {[%emt 0:0:4]} Nf6 {[%emt 0:1:17]} 2. c4 {[%emt 0:0:6]} e6 {[%emt 0:0:36]} 3. Nc3 {[%emt 0:0:5]} d5 {[%emt 0:2:27]} 4. d4 {[%emt 0:0:5]} Be7 {[%emt 0:0:35]} 5. Bg5 {[%emt 0:0:6]} O-O {[%emt 0:0:21]} 6. e3 {[%emt 0:0:6]} b6 {[%emt 0:2:21]} 7. Be2 {[%emt 0:1:16]} Bb7 {[%emt 0:1:6]} 8. Bxf6 {[%emt 0:0:10]} Bxf6 {[%emt 0:0:11]} 9. cxd5 {[%emt 0:0:5]} exd5 {[%emt 0:0:22]} 10. b4 {[%emt 0:0:8]} c6 {[%emt 0:3:36]} 11. O-O {[%emt 0:0:8]} Nd7 {[%emt 0:4:58]} 12. Qb3 {[%emt 0:6:9]} b5 {[%emt 0:7:26]} 13. Bd3 {[%emt 0:18:38]} a5 {[%emt 0:4:29]} 14. a3 {[%emt 0:5:13]} Nb6 {[%emt 0:6:58]} 15. Rad1 {[%emt 0:6:20]} Re8 {[%emt 0:9:56]} 16. e4 {[%emt 0:3:20]} dxe4 {[%emt 0:0:57]} 17. Nxe4 {[%emt 0:0:56]} Nd5 {[%emt 0:2:25]} 18. bxa5 {[%emt 0:7:11]} Rxa5 {[%emt 0:3:8]} 19. Rfe1 {[%emt 0:2:27]} Rf8 {[%emt 0:11:27]} 20. Nc5 {[%emt 0:2:55]} Qc7 {[%emt 0:3:49]} 21. Ne5 {[%emt 0:9:33]} g6 {[%emt 0:8:41]} 22. Be4 {[%emt 0:3:23]} Rd8 {[%emt 0:6:4]} 23. Qf3 {[%emt 0:0:32]} Kg7 {[%emt 0:5:33]} 24. Rc1 {[%emt 0:0:28]} Ne7 {[%emt 0:3:49]} 25. Qb3 {[%emt 0:10:5]} Bxe5 {[%emt 0:3:31]} 26. dxe5 {[%emt 0:0:6]} Bc8 {[%emt 0:0:49]} 27. Bf3 {[%emt 0:3:18]} Qa7 {[%emt 0:2:6]} 28. Rc3 {[%emt 0:2:7]} Nd5 {[%emt 0:1:47]} 29. Bxd5 {[%emt 0:0:4]} Rxd5 {[%emt 0:0:6]} 30. Nd3 {[%emt 0:1:1]} Be6 {[%emt 0:3:54]} 31. Nf4 {[%emt 0:3:27]} Rxe5 {[%emt 0:3:30]} 32. Nxe6+ {[%emt 0:0:6]} Rxe6 {[%emt 0:0:2]} 33. Rxe6 {[%emt 0:0:12]} fxe6 {[%emt 0:0:3]} 34. h3 {[%emt 0:1:37]} Qd4 {[%emt 0:2:44]} 35. Re3 {[%emt 0:1:18]} Qa1+ {[%emt 0:1:3]} 36. Kh2 {[%emt 0:0:6]} Qf6 {[%emt 0:0:2]} 37. Rxe6 {[%emt 0:2:1]} Qf4+ {[%emt 0:0:6]} 38. Kg1 {[%emt 0:0:4]} Qc1+ {[%emt 0:0:4]} 1/2-1/2

[Event "57th Biel Festival MTO 2024"]
[White "Peycheva,Gergana"]
[Black "Kuandykuly,Danis"]
[Site "Biel"]
[Round "5.35"]
[Annotator "RC"]
[Result "0-1"]
[Date "2024.07.19"]
[WhiteElo "2266"]
[BlackElo "1989"]
[PlyCount "70"]
[TimeControl "60"]

1. d4 {[%emt 0:1:56]} Nf6 {[%emt 0:4:57]} 2. c4 {[%emt 0:0:35]} e6 {[%emt 0:0:5]} 3. Nf3 {[%emt 0:0:59]} d5 {[%emt 0:0:7]} 4. g3 {[%emt 0:1:24]} Be7 {[%emt 0:0:8]} 5. Bg2 {[%emt 0:0:36]} O-O {[%emt 0:0:24]} 6. O-O {[%emt 0:0:52]} dxc4 {[%emt 0:0:4]} 7. Qc2 {[%emt 0:0:54]} a6 {[%emt 0:0:9]} 8. Qxc4 {[%emt 0:1:21]} b5 {[%emt 0:0:9]} 9. Qc2 {[%emt 0:0:8]} Bb7 {[%emt 0:0:5]} 10. Bd2 {[%emt 0:0:8]} Ra7 {[%emt 0:0:22]} 11. Rd1 {[%emt 0:2:50]} Be4 {[%emt 0:5:10]} 12. Qc1 {[%emt 0:3:43]} Nc6 {[%emt 0:2:13]} 13. d5 {[%emt 0:18:14]} Bxd5 {[%emt 0:4:4]} 14. Be3 {[%emt 0:4:8]} Ra8 {[%emt 0:1:33]} 15. Nc3 {[%emt 0:4:36]} Qe8 {[%emt 0:3:18]} 16. Bf4 {[%emt 0:10:26]} Rc8 {[%emt 0:20:13]} 17. e4 {[%emt 0:7:38]} Nxe4 {[%emt 0:13:59]} 18. Nxd5 {[%emt 0:1:21]} exd5 {[%emt 0:0:5]} 19. Rxd5 {[%emt 0:0:22]} Nb4 {[%emt 0:10:19]} 20. Rd4 {[%emt 0:3:25]} f5 {[%emt 0:1:25]} 21. a3 {[%emt 0:12:6]} c5 {[%emt 0:0:41]} 22. Rd1 {[%emt 0:0:14]} Nc6 {[%emt 0:0:13]} 23. h4 {[%emt 0:2:37]} Bf6 {[%emt 0:3:59]} 24. Ng5 {[%emt 0:1:49]} Nd4 {[%emt 0:4:47]} 25. Qe3 {[%emt 0:1:49]} Bxg5 {[%emt 0:2:6]} 26. hxg5 {[%emt 0:0:56]} Qf7 {[%emt 0:1:36]} 27. Rac1 {[%emt 0:7:50]} Rfe8 {[%emt 0:1:24]} 28. Re1 {[%emt 0:3:54]} Qh5 {[%emt 0:9:23]} 29. Qd3 {[%emt 0:2:30]} Rcd8 {[%emt 0:3:5]} 30. Re3 {[%emt 0:2:29]} c4 {[%emt 0:2:7]} 31. Qf1 {[%emt 0:2:10]} Nd2 {[%emt 0:2:32]} 32. Rxe8+ {[%emt 0:0:11]} Qxe8 {[%emt 0:0:41]} 33. Bxd2 {[%emt 0:1:22]} Ne2+ {[%emt 0:0:8]} 34. Kh2 {[%emt 0:0:17]} Rxd2 {[%emt 0:0:33]} 35. Bf3 {[%emt 0:1:32]} Nxc1 {[%emt 0:0:13]} 0-1

[Event "57th Biel Festival MTO 2024"]
[White "Munkhzul,Turmunkh"]
[Black "Fronda,Jan Jodilyn"]
[Site "Biel"]
[Round "5.36"]
[Annotator "RC"]
[Result "1-0"]
[Date "2024.07.19"]
[WhiteElo "2232"]
[BlackElo "2072"]
[PlyCount "63"]
[TimeControl "60"]

1. e4 {[%emt 0:0:4]} c5 {[%emt 0:1:24]} 2. Nf3 {[%emt 0:0:19]} d6 {[%emt 0:0:12]} 3. d4 {[%emt 0:0:14]} cxd4 {[%emt 0:0:8]} 4. Nxd4 {[%emt 0:0:6]} Nf6 {[%emt 0:0:6]} 5. Nc3 {[%emt 0:0:27]} g6 {[%emt 0:1:20]} 6. Be3 {[%emt 0:0:28]} a6 {[%emt 0:0:42]} 7. f3 {[%emt 0:0:39]} Nbd7 {[%emt 0:1:9]} 8. Qd2 {[%emt 0:1:11]} b5 {[%emt 0:3:9]} 9. a4 {[%emt 0:3:27]} e5 {[%emt 0:5:31]} 10. Nc6 {[%emt 0:4:33]} Qc7 {[%emt 0:0:12]} 11. axb5 {[%emt 0:0:48]} Bb7 {[%emt 0:5:19]} 12. Nb4 {[%emt 0:3:8]} a5 {[%emt 0:8:39]} 13. Nbd5 {[%emt 0:1:40]} Nxd5 {[%emt 0:0:24]} 14. Nxd5 {[%emt 0:0:19]} Bxd5 {[%emt 0:0:12]} 15. Qxd5 {[%emt 0:0:19]} Rc8 {[%emt 0:0:42]} 16. Bd3 {[%emt 0:1:3]} Be7 {[%emt 0:2:5]} 17. O-O {[%emt 0:1:18]} O-O {[%emt 0:4:54]} 18. b4 {[%emt 0:3:20]} Nf6 {[%emt 0:9:6]} 19. Qb3 {[%emt 0:1:14]} axb4 {[%emt 0:1:45]} 20. Ra7 {[%emt 0:1:49]} Qd8 {[%emt 0:0:9]} 21. Qxb4 {[%emt 0:2:30]} Nd7 {[%emt 0:2:0]} 22. Qd2 {[%emt 0:3:56]} Nc5 {[%emt 0:3:17]} 23. Bc4 {[%emt 0:3:23]} Rc7 {[%emt 0:12:39]} 24. Rfa1 {[%emt 0:10:55]} Qb8 {[%emt 0:4:16]} 25. Rxc7 {[%emt 0:3:6]} Qxc7 {[%emt 0:0:6]} 26. Qd5 {[%emt 0:1:49]} Bf6 {[%emt 0:11:9]} 27. Qc6 {[%emt 0:4:52]} Rc8 {[%emt 0:4:30]} 28. Qxc7 {[%emt 0:1:10]} Rxc7 {[%emt 0:0:5]} 29. Ra8+ {[%emt 0:0:29]} Kg7 {[%emt 0:0:7]} 30. b6 {[%emt 0:0:56]} Re7 {[%emt 0:8:21]} 31. Bxc5 {[%emt 0:1:4]} dxc5 {[%emt 0:0:9]} 32. Bd5 {[%emt 0:0:17]} 1-0

[Event "57th Biel Festival MTO 2024"]
[White "Jaggy,Matteo"]
[Black "Kwiatkowski,Jakub"]
[Site "Biel"]
[Round "5.37"]
[Annotator "RC"]
[Result "1/2-1/2"]
[Date "2024.07.19"]
[WhiteElo "2211"]
[BlackElo "2024"]
[PlyCount "97"]
[TimeControl "60"]

1. d4 {[%emt 0:0:9]} Nf6 {[%emt 0:0:9]} 2. c4 {[%emt 0:0:7]} e6 {[%emt 0:0:8]} 3. g3 {[%emt 0:0:5]} c5 {[%emt 0:0:18]} 4. d5 {[%emt 0:0:11]} exd5 {[%emt 0:0:8]} 5. cxd5 {[%emt 0:0:6]} d6 {[%emt 0:0:10]} 6. Nc3 {[%emt 0:0:7]} g6 {[%emt 0:0:8]} 7. Nf3 {[%emt 0:0:5]} Bg7 {[%emt 0:0:11]} 8. Bg2 {[%emt 0:0:6]} O-O {[%emt 0:0:10]} 9. O-O {[%emt 0:0:5]} a6 {[%emt 0:0:8]} 10. a4 {[%emt 0:0:7]} Re8 {[%emt 0:0:14]} 11. Bf4 {[%emt 0:11:45]} Nh5 {[%emt 0:1:5]} 12. Bg5 {[%emt 0:6:16]} Qc7 {[%emt 0:0:53]} 13. Re1 {[%emt 0:7:10]} Nd7 {[%emt 0:6:49]} 14. Qc1 {[%emt 0:4:0]} Rb8 {[%emt 0:6:45]} 15. a5 {[%emt 0:4:49]} b5 {[%emt 0:8:7]} 16. axb6 {[%emt 0:1:24]} Nxb6 {[%emt 0:0:35]} 17. Bh6 {[%emt 0:13:4]} Bh8 {[%emt 0:3:53]} 18. Nd2 {[%emt 0:4:29]} Nf6 {[%emt 0:11:32]} 19. h3 {[%emt 0:8:44]} Nfd7 {[%emt 0:11:31]} 20. Ra2 {[%emt 0:2:39]} Ne5 {[%emt 0:3:22]} 21. Bf4 {[%emt 0:7:9]} Nbc4 {[%emt 0:14:50]} 22. Nxc4 {[%emt 0:2:52]} Nxc4 {[%emt 0:1:24]} 23. Ne4 {[%emt 0:1:10]} Ne5 {[%emt 0:0:16]} 24. Bg5 {[%emt 0:4:40]} Nd7 {[%emt 0:4:7]} 25. Bd2 {[%emt 0:3:11]} Nf6 {[%emt 0:5:55]} 26. Nc3 {[%emt 0:4:32]} Nd7 {[%emt 0:5:14]} 27. Nd1 {[%emt 0:1:27]} Nf6 {[%emt 0:6:17]} 28. Bc3 {[%emt 0:2:46]} Ne4 {[%emt 0:2:30]} 29. Bxh8 {[%emt 0:1:4]} Kxh8 {[%emt 0:0:11]} 30. Qf4 {[%emt 0:3:51]} f5 {[%emt 0:3:56]} 31. Nc3 {[%emt 0:5:33]} Rb4 {[%emt 0:1:28]} 32. Qc1 {[%emt 0:1:38]} Kg8 {[%emt 0:0:30]} 33. Qc2 {[%emt 0:1:4]} Qe7 {[%emt 0:1:1]} 34. Ra4 {[%emt 0:5:41]} Qb7 {[%emt 0:5:24]} 35. Rxb4 {[%emt 0:2:56]} Qxb4 {[%emt 0:0:43]} 36. Ra1 {[%emt 0:0:4]} Nxc3 {[%emt 0:1:5]} 37. bxc3 {[%emt 0:0:6]} Qb5 {[%emt 0:1:24]} 38. e3 {[%emt 0:0:39]} Re7 {[%emt 0:3:2]} 39. Rb1 {[%emt 0:0:19]} Qe8 {[%emt 0:0:13]} 40. Rb8 {[%emt 0:1:25]} Rb7 {[%emt 0:1:1]} 41. Ra8 {[%emt 0:22:32]} Rb6 {[%emt 0:8:40]} 42. Qa2 {[%emt 0:16:8]} Qd7 {[%emt 0:0:2]} 43. Qa5 {[%emt 0:0:3]} Rb1+ {[%emt 0:0:3]} 44. Kh2 {[%emt 0:0:2]} Kf7 45. Qa2 {[%emt 0:0:2]} Rb6 {[%emt 0:0:2]} 46. Bf1 {[%emt 0:0:3]} Qb7 {[%emt 0:0:1]} 47. Qa5 {[%emt 0:0:2]} Qxa8 {[%emt 0:0:2]} 48. Qxb6 {[%emt 0:0:2]} Qb7 {[%emt 0:0:9]} 49. Qa5 1/2-1/2

[Event "57th Biel Festival MTO 2024"]
[White "Harish,Neeraj"]
[Black "Kamber,Bruno"]
[Site "Biel"]
[Round "5.38"]
[Annotator "RC"]
[Result "1-0"]
[Date "2024.07.19"]
[WhiteElo "2123"]
[BlackElo "2188"]
[PlyCount "53"]
[TimeControl "60"]

1. e4 {[%emt 0:0:5]} c5 {[%emt 0:0:20]} 2. Nf3 {[%emt 0:0:13]} a6 {[%emt 0:0:13]} 3. c4 {[%emt 0:0:10]} Nc6 {[%emt 0:0:10]} 4. d4 {[%emt 0:0:11]} cxd4 {[%emt 0:0:9]} 5. Nxd4 {[%emt 0:0:6]} Nf6 {[%emt 0:0:17]} 6. Nc3 {[%emt 0:0:10]} e5 {[%emt 0:0:10]} 7. Nf5 {[%emt 0:0:10]} d5 {[%emt 0:0:11]} 8. cxd5 {[%emt 0:0:37]} Bxf5 {[%emt 0:0:11]} 9. exf5 {[%emt 0:0:9]} Nd4 {[%emt 0:0:10]} 10. g4 {[%emt 0:2:29]} g6 {[%emt 0:9:58]} 11. g5 {[%emt 0:9:52]} Nxd5 {[%emt 0:13:25]} 12. Bg2 {[%emt 0:3:42]} Nb4 {[%emt 0:5:41]} 13. O-O {[%emt 0:3:30]} gxf5 {[%emt 0:11:8]} 14. Be3 {[%emt 0:18:17]} Be7 {[%emt 0:4:8]} 15. a3 {[%emt 0:4:34]} Nbc2 {[%emt 0:8:2]} 16. Rc1 {[%emt 0:0:41]} Nxe3 {[%emt 0:7:10]} 17. fxe3 {[%emt 0:0:9]} Ne6 {[%emt 0:0:10]} 18. Qh5 {[%emt 0:1:53]} Bxg5 {[%emt 0:0:35]} 19. Rxf5 {[%emt 0:1:1]} Bxe3+ {[%emt 0:2:18]} 20. Kh1 {[%emt 0:0:20]} Rf8 {[%emt 0:2:51]} 21. Rxe5 {[%emt 0:2:47]} Rg8 {[%emt 0:5:40]} 22. Rxe6+ {[%emt 0:1:23]} Kf8 {[%emt 0:0:7]} 23. Rxe3 {[%emt 0:0:17]} Rxg2 {[%emt 0:0:37]} 24. Qh6+ {[%emt 0:1:47]} Kg8 {[%emt 0:4:32]} 25. Kxg2 {[%emt 0:0:16]} Qd2+ {[%emt 0:0:13]} 26. Ne2 {[%emt 0:0:19]} Qd5+ {[%emt 0:3:4]} 27. Kf2 {[%emt 0:0:27]} 1-0

[Event "57th Biel Festival MTO 2024"]
[White "Smirnov,Mark"]
[Black "Demchenko,Svitlana"]
[Site "Biel"]
[Round "5.39"]
[Annotator "RC"]
[Result "1-0"]
[Date "2024.07.19"]
[WhiteElo "2203"]
[BlackElo "2176"]
[PlyCount "69"]
[TimeControl "60"]

1. e4 {[%emt 0:0:19]} e5 {[%emt 0:0:6]} 2. Nc3 {[%emt 0:1:13]} Nf6 {[%emt 0:0:26]} 3. g3 {[%emt 0:0:9]} d5 {[%emt 0:0:11]} 4. exd5 {[%emt 0:0:7]} c6 {[%emt 0:0:11]} 5. d4 {[%emt 0:0:28]} exd4 {[%emt 0:0:17]} 6. Qxd4 {[%emt 0:0:9]} cxd5 {[%emt 0:0:28]} 7. Bg5 {[%emt 0:1:33]} Nc6 {[%emt 0:0:21]} 8. Qa4 {[%emt 0:0:11]} Bb4 {[%emt 0:0:38]} 9. O-O-O {[%emt 0:10:34]} Bxc3 {[%emt 0:13:46]} 10. bxc3 {[%emt 0:0:11]} h6 {[%emt 0:0:39]} 11. Qh4 {[%emt 0:0:46]} Be6 {[%emt 0:6:44]} 12. Bxf6 {[%emt 0:12:24]} gxf6 {[%emt 0:4:58]} 13. Bc4 {[%emt 0:1:1]} Qe7 {[%emt 0:14:51]} 14. Bb3 {[%emt 0:0:26]} O-O-O {[%emt 0:6:38]} 15. Ne2 {[%emt 0:5:42]} Ne5 {[%emt 0:6:48]} 16. Nd4 {[%emt 0:9:47]} h5 {[%emt 0:19:41]} 17. Qf4 {[%emt 0:3:8]} Rhg8 {[%emt 0:6:6]} 18. Rhe1 {[%emt 0:8:17]} a5 {[%emt 0:8:4]} 19. Kb1 {[%emt 0:4:3]} Rg4 {[%emt 0:9:43]} 20. Qh6 {[%emt 0:2:37]} b5 {[%emt 0:6:0]} 21. f4 {[%emt 0:1:36]} Rg6 {[%emt 0:1:55]} 22. Qh7 {[%emt 0:0:45]} a4 {[%emt 0:1:44]} 23. fxe5 {[%emt 0:5:38]} axb3 {[%emt 0:0:21]} 24. axb3 {[%emt 0:1:41]} Rdg8 {[%emt 0:0:39]} 25. Nxe6 {[%emt 0:3:4]} Qxe6 {[%emt 0:0:7]} 26. exf6 {[%emt 0:0:11]} Qxf6 {[%emt 0:0:40]} 27. Rf1 {[%emt 0:2:4]} Qg7 {[%emt 0:0:58]} 28. Qxg7 {[%emt 0:2:35]} R8xg7 {[%emt 0:0:30]} 29. Rxd5 {[%emt 0:0:6]} h4 {[%emt 0:0:27]} 30. gxh4 {[%emt 0:0:13]} Rh6 {[%emt 0:0:17]} 31. h5 {[%emt 0:0:25]} f6 {[%emt 0:0:50]} 32. Rxb5 {[%emt 0:0:53]} Rg2 {[%emt 0:0:5]} 33. Rbf5 {[%emt 0:0:43]} Rxh2 {[%emt 0:0:21]} 34. Rxf6 {[%emt 0:0:15]} R6xh5 {[%emt 0:0:5]} 35. R1f2 {[%emt 0:0:7]} 1-0

[Event "57th Biel Festival MTO 2024"]
[White "Chen,Muxi"]
[Black "Jain Kashish Manoj"]
[Site "Biel"]
[Round "5.40"]
[Annotator "ChessBase"]
[Result "0-1"]
[Date "2024.07.19"]
[WhiteElo "1954"]
[BlackElo "2308"]
[PlyCount "80"]
[TimeControl "60"]

1. e4 {[%emt 0:0:6]} c5 {[%emt 0:0:5]} 2. Nf3 {[%emt 0:0:7]} a6 {[%emt 0:0:4]} 3. c4 {[%emt 0:0:48]} Nc6 {[%emt 0:0:6]} 4. d4 {[%emt 0:0:40]} cxd4 {[%emt 0:0:7]} 5. Nxd4 {[%emt 0:0:7]} Nf6 {[%emt 0:1:58]} 6. Nc3 {[%emt 0:1:8]} e5 {[%emt 0:0:7]} 7. Nf5 {[%emt 0:9:51]} d5 {[%emt 0:0:7]} 8. cxd5 {[%emt 0:0:59]} Nxe4 {[%emt 0:0:7]} 9. Nxg7+ {[%emt 0:20:6]} Bxg7 {[%emt 0:0:3]} 10. dxc6 {[%emt 0:1:15]} Qxd1+ {[%emt 0:2:1]} 11. Nxd1 {[%emt 0:0:10]} bxc6 {[%emt 0:2:15]} 12. Be3 {[%emt 0:10:35]} Be6 {[%emt 0:8:11]} 13. Bd3 {[%emt 0:9:4]} Nd6 {[%emt 0:4:44]} 14. Nc3 {[%emt 0:3:15]} Nb5 {[%emt 0:23:59]} 15. Na4 {[%emt 0:6:0]} O-O {[%emt 0:9:23]} 16. O-O {[%emt 0:1:49]} Rfd8 {[%emt 0:21:26]} 17. Nc5 {[%emt 0:4:31]} Bd5 {[%emt 0:3:55]} 18. f3 {[%emt 0:8:55]} a5 {[%emt 0:0:47]} 19. Bg5 {[%emt 0:10:21]} f6 {[%emt 0:5:22]} 20. Bd2 {[%emt 0:0:48]} Bf8 {[%emt 0:4:32]} 21. Nb7 {[%emt 0:0:57]} Rd7 {[%emt 0:1:55]} 22. Nxa5 {[%emt 0:0:17]} Bf7 {[%emt 0:0:51]} 23. Bxb5 {[%emt 0:2:5]} cxb5 {[%emt 0:0:38]} 24. Be1 {[%emt 0:0:33]} Bc5+ {[%emt 0:7:31]} 25. Kh1 {[%emt 0:0:18]} b4 {[%emt 0:0:6]} 26. Nc6 {[%emt 0:0:6]} b3 {[%emt 0:0:5]} 27. Na5 {[%emt 0:2:50]} bxa2 {[%emt 0:2:11]} 28. b3 {[%emt 0:1:1]} Bb6 {[%emt 0:1:43]} 29. Rxa2 {[%emt 0:0:52]} Rda7 {[%emt 0:2:37]} 30. Ra3 {[%emt 0:0:18]} Bxa5 {[%emt 0:5:37]} 31. Bf2 {[%emt 0:0:6]} Bb6 {[%emt 0:0:4]} 32. Rxa7 {[%emt 0:0:12]} Bxa7 {[%emt 0:0:1]} 33. Ra1 {[%emt 0:0:10]} Bxf2 {[%emt 0:0:3]} 34. Rxa8+ {[%emt 0:0:6]} Kg7 {[%emt 0:0:5]} 35. b4 {[%emt 0:0:20]} f5 {[%emt 0:1:1]} 36. g3 {[%emt 0:2:28]} Bd5 {[%emt 0:2:9]} 37. Ra3 {[%emt 0:0:8]} e4 {[%emt 0:0:7]} 38. Kg2 {[%emt 0:0:5]} Bd4 {[%emt 0:1:4]} 39. h3 {[%emt 0:1:52]} exf3+ {[%emt 0:1:6]} 40. Rxf3 {[%emt 0:0:14]} h5 {[%emt 0:0:39]} 0-1

[Event "57th Biel Festival MTO 2024"]
[White "Follesa,Enrico"]
[Black "Arsenie,Cristian Marc"]
[Site "Biel"]
[Round "5.41"]
[Annotator "ChessBase"]
[Result "0-1"]
[Date "2024.07.19"]
[WhiteElo "2241"]
[BlackElo "2121"]
[PlyCount "74"]
[TimeControl "60"]

1. e4 {[%emt 0:0:3]} c5 {[%emt 0:2:10]} 2. Nf3 {[%emt 0:0:4]} d6 {[%emt 0:0:7]} 3. d4 {[%emt 0:0:6]} cxd4 {[%emt 0:0:4]} 4. Nxd4 {[%emt 0:0:6]} Nf6 {[%emt 0:0:6]} 5. Nc3 {[%emt 0:0:5]} a6 {[%emt 0:0:5]} 6. Be3 {[%emt 0:0:7]} e5 {[%emt 0:0:5]} 7. Nb3 {[%emt 0:0:8]} Be7 {[%emt 0:0:5]} 8. f3 {[%emt 0:0:7]} Be6 {[%emt 0:0:6]} 9. Qd2 {[%emt 0:0:39]} h5 {[%emt 0:0:7]} 10. Nd5 {[%emt 0:0:43]} Nxd5 {[%emt 0:0:37]} 11. exd5 {[%emt 0:0:3]} Bf5 {[%emt 0:0:9]} 12. c4 {[%emt 0:1:9]} a5 {[%emt 0:3:58]} 13. Rc1 {[%emt 0:16:21]} O-O {[%emt 0:4:28]} 14. Be2 {[%emt 0:1:28]} Bh4+ {[%emt 0:5:15]} 15. g3 {[%emt 0:1:19]} Be7 {[%emt 0:0:10]} 16. O-O {[%emt 0:11:23]} Nd7 {[%emt 0:8:7]} 17. a4 {[%emt 0:12:9]} b6 {[%emt 0:0:36]} 18. f4 {[%emt 0:3:10]} Bh3 {[%emt 0:3:7]} 19. Rfd1 {[%emt 0:4:33]} h4 {[%emt 0:3:28]} 20. fxe5 {[%emt 0:3:36]} Nxe5 {[%emt 0:2:24]} 21. Nd4 {[%emt 0:0:40]} Qd7 {[%emt 0:5:44]} 22. b3 {[%emt 0:0:23]} Rae8 {[%emt 0:6:1]} 23. Re1 {[%emt 0:7:12]} Ng4 {[%emt 0:6:55]} 24. Bg5 {[%emt 0:15:15]} hxg3 {[%emt 0:9:1]} 25. hxg3 {[%emt 0:0:9]} Bxg5 {[%emt 0:4:16]} 26. Qxg5 {[%emt 0:0:4]} Re3 {[%emt 0:16:12]} 27. Bf3 {[%emt 0:1:47]} Rfe8 {[%emt 0:1:53]} 28. Rxe3 {[%emt 0:7:32]} Rxe3 {[%emt 0:0:5]} 29. Qf4 {[%emt 0:2:52]} Qe8 {[%emt 0:6:12]} 30. Nc2 {[%emt 0:9:33]} Re2 {[%emt 0:4:54]} 31. Bxg4 {[%emt 0:0:52]} Re4 {[%emt 0:0:39]} 32. Qxd6 {[%emt 0:0:42]} Bxg4 {[%emt 0:0:59]} 33. Qxb6 {[%emt 0:5:26]} Re2 {[%emt 0:2:40]} 34. Qd4 {[%emt 0:3:31]} Bf3 {[%emt 0:0:45]} 35. Kf1 {[%emt 0:1:7]} Qd7 {[%emt 0:3:34]} 36. g4 {[%emt 0:1:26]} Qd6 {[%emt 0:1:17]} 37. Qg1 {[%emt 0:2:39]} Qf4 {[%emt 0:0:16]} 0-1

[Event "57th Biel Festival MTO 2024"]
[White "Kolbus,Dietmar"]
[Black "Erne,Raphael"]
[Site "Biel"]
[Round "5.42"]
[Annotator "RC"]
[Result "1-0"]
[Date "2024.07.19"]
[WhiteElo "2234"]
[BlackElo "2102"]
[PlyCount "57"]
[TimeControl "60"]

1. c4 {[%emt 0:13:13]} c5 {[%emt 0:0:20]} 2. Nf3 {[%emt 0:1:46]} Nc6 {[%emt 0:0:17]} 3. Nc3 {[%emt 0:0:18]} Nf6 {[%emt 0:2:20]} 4. d4 {[%emt 0:0:16]} cxd4 {[%emt 0:0:21]} 5. Nxd4 {[%emt 0:0:4]} g6 {[%emt 0:0:35]} 6. e4 {[%emt 0:0:52]} d6 {[%emt 0:0:40]} 7. Be2 {[%emt 0:0:10]} Nxd4 {[%emt 0:0:49]} 8. Qxd4 {[%emt 0:0:3]} Bg7 {[%emt 0:0:20]} 9. Bg5 {[%emt 0:1:8]} O-O {[%emt 0:0:30]} 10. Qd2 {[%emt 0:0:15]} a5 {[%emt 0:0:31]} 11. Rc1 {[%emt 0:7:49]} a4 {[%emt 0:4:54]} 12. f3 {[%emt 0:3:6]} Be6 {[%emt 0:11:46]} 13. Nb5 {[%emt 0:16:31]} Nd7 {[%emt 0:6:55]} 14. O-O {[%emt 0:8:19]} Nc5 {[%emt 0:1:54]} 15. Kh1 {[%emt 0:4:29]} Re8 {[%emt 0:3:4]} 16. Rfd1 {[%emt 0:3:7]} Qb6 {[%emt 0:7:50]} 17. Be3 {[%emt 0:2:11]} Rec8 {[%emt 0:8:14]} 18. Bf1 {[%emt 0:9:46]} Qa5 {[%emt 0:5:39]} 19. Qf2 {[%emt 0:1:59]} Ra6 {[%emt 0:18:42]} 20. Bd2 {[%emt 0:3:16]} Qb6 {[%emt 0:2:53]} 21. Bg5 {[%emt 0:0:48]} Re8 {[%emt 0:2:16]} 22. Rc2 {[%emt 0:4:20]} f6 {[%emt 0:11:22]} 23. Be3 {[%emt 0:1:28]} Qc6 {[%emt 0:1:1]} 24. Nd4 {[%emt 0:2:53]} Qc7 {[%emt 0:2:53]} 25. Nxe6 {[%emt 0:2:41]} Nxe6 {[%emt 0:0:3]} 26. c5 {[%emt 0:0:17]} Raa8 {[%emt 0:2:2]} 27. cxd6 {[%emt 0:0:32]} Qd7 {[%emt 0:0:36]} 28. Rd5 {[%emt 0:1:40]} exd6 {[%emt 0:0:43]} 29. Bb5 {[%emt 0:0:13]} 1-0

[Event "57th Biel Festival MTO 2024"]
[White "Papaux,Steve"]
[Black "Coles,Robin"]
[Site "Biel"]
[Round "5.43"]
[Annotator "RC"]
[Result "1-0"]
[Date "2024.07.19"]
[WhiteElo "2188"]
[BlackElo "2084"]
[PlyCount "75"]
[TimeControl "60"]

1. e4 {[%emt 0:0:2]} e6 {[%emt 0:1:56]} 2. d4 {[%emt 0:0:6]} d5 {[%emt 0:0:1]} 3. e5 {[%emt 0:0:5]} c5 {[%emt 0:0:7]} 4. c3 {[%emt 0:0:3]} Qb6 {[%emt 0:0:16]} 5. Nf3 {[%emt 0:0:21]} Bd7 {[%emt 0:0:33]} 6. Be2 {[%emt 0:0:54]} Bb5 {[%emt 0:0:7]} 7. dxc5 {[%emt 0:0:11]} Bxc5 {[%emt 0:0:2]} 8. b4 {[%emt 0:0:4]} Bxe2 {[%emt 0:0:10]} 9. Qxe2 {[%emt 0:0:3]} Be7 {[%emt 0:0:5]} 10. Na3 {[%emt 0:1:35]} a6 {[%emt 0:4:33]} 11. O-O {[%emt 0:1:34]} Bd8 {[%emt 0:7:43]} 12. c4 {[%emt 0:10:32]} Ne7 {[%emt 0:4:36]} 13. cxd5 {[%emt 0:10:11]} exd5 {[%emt 0:1:41]} 14. Nc2 {[%emt 0:5:52]} O-O {[%emt 0:1:58]} 15. Be3 {[%emt 0:0:58]} Qg6 {[%emt 0:1:46]} 16. Rfd1 {[%emt 0:5:21]} Nbc6 {[%emt 0:2:45]} 17. Bc5 {[%emt 0:4:10]} Bc7 {[%emt 0:9:5]} 18. Nfd4 {[%emt 0:2:34]} Rfe8 {[%emt 0:8:13]} 19. f4 {[%emt 0:2:1]} Nf5 {[%emt 0:6:19]} 20. Nf3 {[%emt 0:18:20]} Rad8 {[%emt 0:4:45]} 21. b5 {[%emt 0:3:38]} Nb8 {[%emt 0:13:25]} 22. Rab1 {[%emt 0:3:57]} Nd7 {[%emt 0:7:57]} 23. Bf2 {[%emt 0:0:11]} Nf6 {[%emt 0:1:48]} 24. bxa6 {[%emt 0:1:38]} Ne4 {[%emt 0:2:38]} 25. Rxb7 {[%emt 0:2:48]} Nc3 {[%emt 0:4:15]} 26. Qd3 {[%emt 0:0:3]} Nxd1 {[%emt 0:0:52]} 27. Qxd1 {[%emt 0:0:4]} Rc8 {[%emt 0:4:8]} 28. Qd3 {[%emt 0:1:32]} Ba5 {[%emt 0:3:58]} 29. a7 {[%emt 0:1:49]} Qc6 {[%emt 0:2:42]} 30. Rb8 {[%emt 0:0:14]} Rxb8 {[%emt 0:2:19]} 31. axb8=Q {[%emt 0:0:6]} Rxb8 {[%emt 0:0:2]} 32. Qxf5 {[%emt 0:0:12]} Rb1+ {[%emt 0:3:12]} 33. Nce1 {[%emt 0:0:17]} Ra1 {[%emt 0:2:16]} 34. Ng5 {[%emt 0:1:45]} Qc7 {[%emt 0:4:23]} 35. e6 {[%emt 0:0:26]} f6 {[%emt 0:1:41]} 36. Qxh7+ {[%emt 0:0:39]} Kf8 {[%emt 0:0:0]} 37. e7+ {[%emt 0:1:21]} Kxe7 {[%emt 0:0:16]} 38. Qxg7+ {[%emt 0:0:3]} 1-0

[Event "57th Biel Festival MTO 2024"]
[White "Borner,Daniel"]
[Black "Gueci,Tea"]
[Site "Biel"]
[Round "5.44"]
[Annotator "RC"]
[Result "0-1"]
[Date "2024.07.19"]
[WhiteElo "2075"]
[BlackElo "2228"]
[PlyCount "60"]
[TimeControl "60"]

1. e4 {[%emt 0:0:13]} c5 {[%emt 0:0:2]} 2. Nf3 {[%emt 0:0:11]} d6 {[%emt 0:0:3]} 3. d4 {[%emt 0:1:5]} cxd4 {[%emt 0:0:5]} 4. Nxd4 {[%emt 0:0:4]} Nf6 {[%emt 0:0:4]} 5. Nc3 {[%emt 0:0:5]} a6 {[%emt 0:0:5]} 6. f3 {[%emt 0:0:35]} e6 {[%emt 0:0:12]} 7. Be3 {[%emt 0:0:58]} h5 {[%emt 0:0:13]} 8. Qd2 {[%emt 0:1:8]} Be7 {[%emt 0:0:36]} 9. O-O-O {[%emt 0:0:57]} b5 {[%emt 0:0:52]} 10. a3 {[%emt 0:1:3]} Bb7 {[%emt 0:1:0]} 11. Be2 {[%emt 0:2:4]} Nbd7 {[%emt 0:0:54]} 12. g3 {[%emt 0:3:11]} g6 {[%emt 0:11:7]} 13. h3 {[%emt 0:1:46]} d5 {[%emt 0:4:27]} 14. exd5 {[%emt 0:1:24]} Nxd5 {[%emt 0:0:43]} 15. Nxd5 {[%emt 0:0:14]} Bxd5 {[%emt 0:1:4]} 16. Kb1 {[%emt 0:7:40]} Bf6 {[%emt 0:20:21]} 17. Rhe1 {[%emt 0:4:46]} O-O {[%emt 0:10:25]} 18. g4 {[%emt 0:2:1]} h4 {[%emt 0:8:10]} 19. f4 {[%emt 0:0:39]} b4 {[%emt 0:3:16]} 20. axb4 {[%emt 0:1:16]} a5 {[%emt 0:0:34]} 21. b5 {[%emt 0:0:16]} a4 {[%emt 0:1:33]} 22. Nc6 {[%emt 0:7:40]} Qc7 {[%emt 0:9:50]} 23. Bd4 {[%emt 0:26:0]} a3 {[%emt 0:6:56]} 24. b3 {[%emt 0:2:31]} Bxc6 {[%emt 0:5:15]} 25. Qc3 {[%emt 0:1:44]} e5 {[%emt 0:11:53]} 26. fxe5 {[%emt 0:1:3]} Nxe5 {[%emt 0:0:18]} 27. bxc6 {[%emt 0:0:56]} Rfd8 {[%emt 0:0:49]} 28. Ka2 {[%emt 0:5:43]} Rxd4 {[%emt 0:4:26]} 29. Rxd4 {[%emt 0:2:33]} Nxc6 {[%emt 0:0:19]} 30. Bf3 {[%emt 0:0:6]} Nb4+ {[%emt 0:0:15]} 0-1